[Event "*** Titled Tuesday Blitz"]
[Site "Chess.com"]
[Date "2020.05.05"]
[Round "7"]
[White "Zhuu96"]
[Black "DLR7"]
[Result "0-1"]
[WhiteElo "2909"]
[BlackElo "2823"]
[TimeControl "180+1"]
[EndTime "11:18:47 PDT"]
[Termination "DLR7 won on time"]

1. d4 {[%clk 0:03:00.9]} 1... Nf6 {[%clk 0:02:58.1]} 2. c4 {[%clk 0:03:00.3]}
2... e6 {[%clk 0:02:56.2]} 3. Nf3 {[%clk 0:03:00.3]} 3... Bb4+ {[%clk
0:02:52.1]} 4. Nbd2 {[%clk 0:02:58.4]} 4... O-O {[%clk 0:02:46.2]} 5. e3 {[%clk
0:02:56.7]} 5... d5 {[%clk 0:02:42.2]} 6. Qc2 {[%clk 0:02:56.5]} 6... b6 {[%clk
0:02:38.5]} 7. Be2 {[%clk 0:02:55.2]} 7... c5 {[%clk 0:02:34]} 8. a3 {[%clk
0:02:43]} 8... Bxd2+ {[%clk 0:02:32.9]} 9. Bxd2 {[%clk 0:02:42]} 9... cxd4
{[%clk 0:02:31.1]} 10. Nxd4 {[%clk 0:02:34.1]} 10... e5 {[%clk 0:02:26.2]} 11.
Nf3 {[%clk 0:02:33.2]} 11... Nbd7 {[%clk 0:02:20.7]} 12. cxd5 {[%clk 0:02:29.4]}
12... Bb7 {[%clk 0:02:17.1]} 13. Bb4 {[%clk 0:02:24.9]} 13... Rc8 {[%clk
0:02:12.8]} 14. Qb1 {[%clk 0:02:21.1]} 14... e4 {[%clk 0:02:11.4]} 15. Nd4
{[%clk 0:02:16.4]} 15... Re8 {[%clk 0:02:11.9]} 16. Nc6 {[%clk 0:02:05.4]} 16...
Bxc6 {[%clk 0:02:11.7]} 17. dxc6 {[%clk 0:02:05.3]} 17... Rxc6 {[%clk
0:02:12.6]} 18. O-O {[%clk 0:01:59.7]} 18... Nd5 {[%clk 0:02:10.4]} 19. Bb5
{[%clk 0:01:55.6]} 19... Rg6 {[%clk 0:02:05.3]} 20. g3 {[%clk 0:01:51.4]} 20...
a6 {[%clk 0:01:56.6]} 21. Bxa6 {[%clk 0:01:47.8]} 21... Qf6 {[%clk 0:01:49.3]}
22. Rd1 {[%clk 0:01:43.1]} 22... Qf5 {[%clk 0:01:45.1]} 23. Bb7 {[%clk
0:01:39.5]} 23... N5f6 {[%clk 0:01:41.3]} 24. Bd6 {[%clk 0:01:31.7]} 24... Ng4
{[%clk 0:01:18.1]} 25. Qc2 {[%clk 0:01:26]} 25... Rf6 {[%clk 0:01:15.9]} 26. Bf4
{[%clk 0:01:21.3]} 26... Nc5 {[%clk 0:01:15.4]} 27. Rd5 {[%clk 0:01:09.6]} 27...
Qe6 {[%clk 0:01:13.5]} 28. Rd6 {[%clk 0:01:08.6]} 28... Qf5 {[%clk 0:01:11.8]}
29. Rxf6 {[%clk 0:01:03.6]} 29... Nxf6 {[%clk 0:01:07.1]} 30. Bc6 {[%clk
0:01:00.4]} 30... Rc8 {[%clk 0:01:04.8]} 31. b4 {[%clk 0:00:52.5]} 31... Rxc6
{[%clk 0:01:04.2]} 32. bxc5 {[%clk 0:00:52.1]} 32... Rxc5 {[%clk 0:01:02.8]} 33.
Qb2 {[%clk 0:00:46.5]} 33... h6 {[%clk 0:01:02.9]} 34. Rb1 {[%clk 0:00:31.9]}
34... Qh3 {[%clk 0:00:58.1]} 35. f3 {[%clk 0:00:17.4]} 35... exf3 {[%clk
0:00:55.8]} 36. Rf1 {[%clk 0:00:17.5]} 36... Ng4 {[%clk 0:00:48.8]} 37. e4
{[%clk 0:00:11.9]} 37... f2+ {[%clk 0:00:45.4]} 38. Rxf2 {[%clk 0:00:12]} 38...
Nxf2 {[%clk 0:00:45.5]} 39. Qxf2 {[%clk 0:00:12.9]} 39... Qe6 {[%clk 0:00:40]}
40. e5 {[%clk 0:00:05.5]} 40... g5 {[%clk 0:00:38.3]} 41. Be3 {[%clk 0:00:05.2]}
41... Rxe5 {[%clk 0:00:38.6]} 42. Bxb6 {[%clk 0:00:01.4]} 42... Re1+ {[%clk
0:00:39]} 0-1

[Event "*** Titled Tuesday Blitz"]
[Site "Chess.com"]
[Date "2020.05.05"]
[Round "7"]
[White "Kaliopa"]
[Black "ecwinslow"]
[Result "1-0"]
[WhiteElo "2100"]
[BlackElo "2208"]
[TimeControl "180+1"]
[EndTime "11:18:47 PDT"]
[Termination "Kaliopa won by resignation"]

1. e4 {[%clk 0:03:00.9]} 1... c5 {[%clk 0:02:58.5]} 2. Nf3 {[%clk 0:02:59.9]}
2... d6 {[%clk 0:02:52.5]} 3. d4 {[%clk 0:02:58.7]} 3... cxd4 {[%clk 0:02:51.7]}
4. Nxd4 {[%clk 0:02:59.6]} 4... Nf6 {[%clk 0:02:51.6]} 5. Nc3 {[%clk 0:02:59.3]}
5... a6 {[%clk 0:02:51.9]} 6. Bg5 {[%clk 0:02:58.6]} 6... e6 {[%clk 0:02:51.2]}
7. f4 {[%clk 0:02:27.2]} 7... Be7 {[%clk 0:02:48.4]} 8. Qf3 {[%clk 0:02:24.9]}
8... h6 {[%clk 0:02:46.5]} 9. Bh4 {[%clk 0:02:20.7]} 9... Qc7 {[%clk 0:02:45.2]}
10. O-O-O {[%clk 0:02:18.9]} 10... Nbd7 {[%clk 0:02:45.1]} 11. g4 {[%clk
0:02:17.7]} 11... g5 {[%clk 0:02:38]} 12. fxg5 {[%clk 0:02:12]} 12... Ne5 {[%clk
0:02:36.5]} 13. Qg3 {[%clk 0:01:58.9]} 13... Nfxg4 {[%clk 0:02:34.7]} 14. gxh6
{[%clk 0:01:57.6]} 14... Bxh4 {[%clk 0:02:22.3]} 15. Qxh4 {[%clk 0:01:56.7]}
15... Rxh6 {[%clk 0:02:22.6]} 16. Qg3 {[%clk 0:01:53.8]} 16... Bd7 {[%clk
0:01:49.3]} 17. Be2 {[%clk 0:01:51.4]} 17... Nf6 {[%clk 0:01:39.5]} 18. Qf4
{[%clk 0:01:17.8]} 18... Rg6 {[%clk 0:01:24.8]} 19. h4 {[%clk 0:01:14.7]} 19...
d5 {[%clk 0:00:52.9]} 20. Kb1 {[%clk 0:01:02]} 20... Nxe4 {[%clk 0:00:51.8]} 21.
Nxe4 {[%clk 0:00:58.5]} 21... dxe4 {[%clk 0:00:51.7]} 22. h5 {[%clk 0:00:55.1]}
22... Rg8 {[%clk 0:00:47.1]} 23. h6 {[%clk 0:00:44.6]} 23... O-O-O {[%clk
0:00:45.8]} 24. h7 {[%clk 0:00:42.1]} 24... Rh8 {[%clk 0:00:45.2]} 25. Qxe4
{[%clk 0:00:42]} 25... Nc6 {[%clk 0:00:33.3]} 26. Bf3 {[%clk 0:00:30.9]} 26...
f5 {[%clk 0:00:20.6]} 27. Qe3 {[%clk 0:00:20.6]} 27... Nxd4 {[%clk 0:00:18.2]}
28. Rxd4 {[%clk 0:00:15.1]} 28... e5 {[%clk 0:00:17.8]} 29. Rd2 {[%clk
0:00:13.6]} 29... e4 {[%clk 0:00:17.5]} 30. Bg2 {[%clk 0:00:13.8]} 30... f4
{[%clk 0:00:14.6]} 31. Qxe4 {[%clk 0:00:06.4]} 31... Bc6 {[%clk 0:00:14.6]} 32.
Rxd8+ {[%clk 0:00:06.5]} 32... Qxd8 {[%clk 0:00:12.9]} 33. Qf5+ {[%clk
0:00:04.7]} 33... Kb8 {[%clk 0:00:11.8]} 34. Bxc6 {[%clk 0:00:04.5]} 34... bxc6
{[%clk 0:00:10.9]} 35. Qxf4+ {[%clk 0:00:04.8]} 35... Qc7 {[%clk 0:00:10.8]} 36.
Qxc7+ {[%clk 0:00:04.6]} 36... Kxc7 {[%clk 0:00:10.2]} 37. c4 {[%clk 0:00:05.5]}
1-0

[Event "*** Titled Tuesday Blitz"]
[Site "Chess.com"]
[Date "2020.05.05"]
[Round "7"]
[White "Kaua18"]
[Black "gemarin"]
[Result "0-1"]
[WhiteElo "2278"]
[BlackElo "1982"]
[TimeControl "180+1"]
[EndTime "11:18:48 PDT"]
[Termination "gemarin won by resignation"]

1. e4 {[%clk 0:03:00.9]} 1... c5 {[%clk 0:02:58.3]} 2. Nf3 {[%clk 0:03:01.3]}
2... Nc6 {[%clk 0:02:55.8]} 3. d4 {[%clk 0:03:02.2]} 3... cxd4 {[%clk
0:02:55.4]} 4. Nxd4 {[%clk 0:03:02.4]} 4... e5 {[%clk 0:02:55.1]} 5. Nb5 {[%clk
0:03:01.5]} 5... d6 {[%clk 0:02:55.1]} 6. N1c3 {[%clk 0:02:58.1]} 6... a6 {[%clk
0:02:47.4]} 7. Na3 {[%clk 0:02:58.3]} 7... b5 {[%clk 0:02:39.5]} 8. Nd5 {[%clk
0:02:58.3]} 8... Nge7 {[%clk 0:02:39.1]} 9. c4 {[%clk 0:02:56.6]} 9... Nxd5
{[%clk 0:02:22.2]} 10. exd5 {[%clk 0:02:55.1]} 10... Nd4 {[%clk 0:02:21.2]} 11.
Be3 {[%clk 0:02:52.2]} 11... b4 {[%clk 0:02:18.8]} 12. Bxd4 {[%clk 0:02:46.6]}
12... bxa3 {[%clk 0:02:17.8]} 13. Bc3 {[%clk 0:02:42]} 13... axb2 {[%clk
0:02:17.1]} 14. Rb1 {[%clk 0:02:42.1]} 14... Rb8 {[%clk 0:02:13.8]} 15. Be2
{[%clk 0:02:34.1]} 15... Bf5 {[%clk 0:02:10.7]} 16. Rxb2 {[%clk 0:02:31.4]}
16... Rxb2 {[%clk 0:02:09.7]} 17. Bxb2 {[%clk 0:02:31.7]} 17... Qa5+ {[%clk
0:02:08.4]} 18. Qd2 {[%clk 0:02:30.9]} 18... Qxa2 {[%clk 0:02:07.6]} 19. O-O
{[%clk 0:02:30.9]} 19... Be7 {[%clk 0:01:57.9]} 20. Ra1 {[%clk 0:02:28.1]} 20...
Qb3 {[%clk 0:01:57.8]} 21. Ra3 {[%clk 0:02:23.4]} 21... Qb6 {[%clk 0:01:53]} 22.
g4 {[%clk 0:02:19.7]} 22... Be4 {[%clk 0:01:44.8]} 23. c5 {[%clk 0:02:11]} 23...
Qxc5 {[%clk 0:01:28.8]} 24. Rc3 {[%clk 0:02:01.5]} 24... Qb6 {[%clk 0:01:28.6]}
25. Rc8+ {[%clk 0:01:38.1]} 25... Bd8 {[%clk 0:01:27.3]} 26. Rc6 {[%clk
0:01:33.8]} 26... Qb8 {[%clk 0:01:26.4]} 27. Bxa6 {[%clk 0:01:02.8]} 27... O-O
{[%clk 0:01:23.9]} 28. Ba3 {[%clk 0:01:01.8]} 28... Qb1+ {[%clk 0:01:21.6]} 29.
Bf1 {[%clk 0:01:01]} 29... Qb3 {[%clk 0:01:09.4]} 30. Rc3 {[%clk 0:00:56.1]}
30... Qxd5 {[%clk 0:01:08.3]} 31. Qxd5 {[%clk 0:00:56.1]} 31... Bxd5 {[%clk
0:01:07]} 32. Bxd6 {[%clk 0:00:56.4]} 32... Re8 {[%clk 0:01:06.1]} 33. Bb5
{[%clk 0:00:54.1]} 33... Re6 {[%clk 0:01:05.6]} 34. Bb4 {[%clk 0:00:33.2]} 34...
Bb7 {[%clk 0:01:04.7]} 35. Rd3 {[%clk 0:00:26]} 35... Bg5 {[%clk 0:01:01]} 36.
Bc5 {[%clk 0:00:09.8]} 36... h6 {[%clk 0:00:58.7]} 37. Rd7 {[%clk 0:00:09.8]}
37... Bf3 {[%clk 0:00:55.4]} 38. Bc4 {[%clk 0:00:08.9]} 38... Rf6 {[%clk
0:00:54]} 39. Be7 {[%clk 0:00:07.6]} 39... Rf4 {[%clk 0:00:51]} 40. Bxg5 {[%clk
0:00:05.3]} 40... hxg5 {[%clk 0:00:49.8]} 41. Bd3 {[%clk 0:00:04.8]} 41... Rxg4+
{[%clk 0:00:45.6]} 42. Kf1 {[%clk 0:00:05.2]} 42... e4 {[%clk 0:00:45.1]} 43.
Bc4 {[%clk 0:00:05.6]} 43... Rf4 {[%clk 0:00:45.4]} 44. Ke1 {[%clk 0:00:05.8]}
44... Rf6 {[%clk 0:00:44.8]} 45. Kd2 {[%clk 0:00:05.4]} 45... g6 {[%clk
0:00:45.1]} 46. Ke3 {[%clk 0:00:05.6]} 46... Kg7 {[%clk 0:00:45.1]} 47. h3
{[%clk 0:00:05.6]} 47... Bg2 {[%clk 0:00:43.3]} 48. Bb3 {[%clk 0:00:03.4]} 48...
Bxh3 {[%clk 0:00:42.4]} 49. Kxe4 {[%clk 0:00:03.5]} 49... Bxd7 {[%clk
0:00:41.7]} 0-1

[Event "*** Titled Tuesday Blitz"]
[Site "Chess.com"]
[Date "2020.05.05"]
[Round "7"]
[White "AVolodin"]
[Black "EddieMarsalla"]
[Result "1-0"]
[WhiteElo "2673"]
[BlackElo "2522"]
[TimeControl "180+1"]
[EndTime "11:18:49 PDT"]
[Termination "AVolodin won by resignation"]

1. d4 {[%clk 0:03:00.9]} 1... d5 {[%clk 0:03:00]} 2. c4 {[%clk 0:02:59.8]} 2...
Bf5 {[%clk 0:03:00.6]} 3. Nc3 {[%clk 0:02:59.1]} 3... e6 {[%clk 0:03:00.6]} 4.
Nf3 {[%clk 0:02:57.8]} 4... Nc6 {[%clk 0:03:00.2]} 5. Bf4 {[%clk 0:02:56.8]}
5... Bd6 {[%clk 0:03:00]} 6. Bxd6 {[%clk 0:02:55.3]} 6... Qxd6 {[%clk
0:03:00.9]} 7. e3 {[%clk 0:02:56.1]} 7... Nf6 {[%clk 0:03:01.1]} 8. c5 {[%clk
0:02:51.7]} 8... Qd8 {[%clk 0:02:59.9]} 9. Bb5 {[%clk 0:02:52]} 9... O-O {[%clk
0:03:00.1]} 10. Bxc6 {[%clk 0:02:51.6]} 10... bxc6 {[%clk 0:03:00.5]} 11. Ne5
{[%clk 0:02:52.5]} 11... Nd7 {[%clk 0:02:59.5]} 12. Nxc6 {[%clk 0:02:51]} 12...
Qg5 {[%clk 0:02:59.5]} 13. O-O {[%clk 0:02:49.2]} 13... Bg4 {[%clk 0:02:57.9]}
14. f4 {[%clk 0:02:28.2]} 14... Bxd1 {[%clk 0:02:37.1]} 15. fxg5 {[%clk
0:02:27.3]} 15... Bh5 {[%clk 0:02:38]} 16. b4 {[%clk 0:02:19.8]} 16... f6 {[%clk
0:02:33.5]} 17. h4 {[%clk 0:02:13.2]} 17... Be8 {[%clk 0:02:26.2]} 18. Rf2
{[%clk 0:01:35.7]} 18... Nxc5 {[%clk 0:02:22.8]} 19. Ne7+ {[%clk 0:01:26.5]}
19... Kf7 {[%clk 0:02:22.8]} 20. gxf6 {[%clk 0:01:16.2]} 20... Nd3 {[%clk
0:02:07.8]} 21. fxg7+ {[%clk 0:01:01.6]} 21... Kxg7 {[%clk 0:02:08.7]} 22. Rd2
{[%clk 0:00:42.6]} 22... Nxb4 {[%clk 0:02:08]} 23. Rb1 {[%clk 0:00:43]} 23...
Na6 {[%clk 0:01:57.4]} 24. e4 {[%clk 0:00:28.4]} 24... Kf7 {[%clk 0:01:56.8]}
25. Nexd5 {[%clk 0:00:22]} 25... exd5 {[%clk 0:01:56.4]} 26. Nxd5 {[%clk
0:00:22.7]} 26... Bc6 {[%clk 0:01:49.4]} 27. Nc3 {[%clk 0:00:22.1]} 27... Ke7
{[%clk 0:01:47.2]} 28. d5 {[%clk 0:00:22.6]} 28... Bd7 {[%clk 0:01:44.3]} 29. e5
{[%clk 0:00:23.1]} 29... Rab8 {[%clk 0:01:44.3]} 30. Re1 {[%clk 0:00:22.2]}
30... Rfe8 {[%clk 0:01:25.3]} 31. e6 {[%clk 0:00:22]} 31... Bc8 {[%clk
0:01:16.5]} 32. d6+ {[%clk 0:00:21.5]} 32... cxd6 {[%clk 0:01:13.9]} 33. Nd5+
{[%clk 0:00:21.7]} 33... Kd8 {[%clk 0:01:14]} 34. e7+ {[%clk 0:00:20.4]} 34...
Rxe7 {[%clk 0:01:12.5]} 35. Nxe7 {[%clk 0:00:19.9]} 35... Rb6 {[%clk 0:01:02.5]}
36. Nd5 {[%clk 0:00:17.9]} 36... Rc6 {[%clk 0:00:57.7]} 37. Re7 {[%clk
0:00:13.9]} 37... h5 {[%clk 0:00:52.7]} 38. Rxa7 {[%clk 0:00:13]} 38... Nc5
{[%clk 0:00:53.2]} 39. Rf2 {[%clk 0:00:12.1]} 39... Ne6 {[%clk 0:00:48]} 40.
Rff7 {[%clk 0:00:10.8]} 40... Ra6 {[%clk 0:00:41.7]} 41. Rae7 {[%clk 0:00:08.8]}
41... Ra5 {[%clk 0:00:34.4]} 42. Nf6 {[%clk 0:00:08.8]} 1-0

[Event "*** Titled Tuesday Blitz"]
[Site "Chess.com"]
[Date "2020.05.05"]
[Round "7"]
[White "madalin18"]
[Black "ChadBiryani"]
[Result "0-1"]
[WhiteElo "2157"]
[BlackElo "2347"]
[TimeControl "180+1"]
[EndTime "11:18:49 PDT"]
[Termination "ChadBiryani won on time"]

1. e4 {[%clk 0:01:59.2]} 1... c5 {[%clk 0:02:55.7]} 2. Nf3 {[%clk 0:01:58.5]}
2... d6 {[%clk 0:02:55.9]} 3. d4 {[%clk 0:01:55.7]} 3... cxd4 {[%clk 0:02:56.8]}
4. Nxd4 {[%clk 0:01:55.4]} 4... Nf6 {[%clk 0:02:56.6]} 5. Nc3 {[%clk 0:01:55.7]}
5... g6 {[%clk 0:02:51.9]} 6. f3 {[%clk 0:01:49.9]} 6... Bg7 {[%clk 0:02:51.6]}
7. Be3 {[%clk 0:01:50.3]} 7... O-O {[%clk 0:02:51.7]} 8. Qd2 {[%clk 0:01:50.4]}
8... Nc6 {[%clk 0:02:51.6]} 9. O-O-O {[%clk 0:01:50.4]} 9... d5 {[%clk 0:02:51]}
10. Qe1 {[%clk 0:01:49.8]} 10... e5 {[%clk 0:02:50.8]} 11. Nxc6 {[%clk
0:01:37.6]} 11... bxc6 {[%clk 0:02:49.9]} 12. exd5 {[%clk 0:01:37.5]} 12... Nxd5
{[%clk 0:02:49]} 13. Bc4 {[%clk 0:01:34.3]} 13... Be6 {[%clk 0:02:48.4]} 14. Bb3
{[%clk 0:01:32.2]} 14... Qc7 {[%clk 0:02:45.6]} 15. Bc5 {[%clk 0:01:31]} 15...
Rfd8 {[%clk 0:02:44.4]} 16. Ne4 {[%clk 0:01:30.5]} 16... h6 {[%clk 0:02:41.5]}
17. g4 {[%clk 0:00:52.6]} 17... Nf4 {[%clk 0:02:27.7]} 18. Bd6 {[%clk
0:00:45.8]} 18... Qb6 {[%clk 0:02:24.6]} 19. Bxe6 {[%clk 0:00:45.1]} 19... Nxe6
{[%clk 0:02:23.8]} 20. h4 {[%clk 0:00:41.1]} 20... Qa6 {[%clk 0:02:03.3]} 21.
Kb1 {[%clk 0:00:38.6]} 21... Nd4 {[%clk 0:02:01.5]} 22. Qe3 {[%clk 0:00:19.3]}
22... f5 {[%clk 0:01:38.5]} 23. Nc5 {[%clk 0:00:19.2]} 23... Qb5 {[%clk
0:01:32.6]} 24. Bxe5 {[%clk 0:00:16.7]} 24... Qxc5 {[%clk 0:01:26.5]} 25. Bxg7
{[%clk 0:00:16.8]} 25... Kxg7 {[%clk 0:01:26.2]} 26. c3 {[%clk 0:00:14.1]} 26...
Nb3 {[%clk 0:01:21]} 27. Qe6 {[%clk 0:00:08.6]} 27... Nd2+ {[%clk 0:01:15.2]}
28. Ka1 {[%clk 0:00:06.9]} 28... Qd6 {[%clk 0:00:51.9]} 29. Qe3 {[%clk
0:00:06.1]} 29... Nc4 {[%clk 0:00:42.6]} 30. Rxd6 {[%clk 0:00:02.9]} 30... Nxe3
{[%clk 0:00:42.4]} 31. Re6 {[%clk 0:00:02.6]} 31... f4 {[%clk 0:00:32.7]} 32.
Rxc6 {[%clk 0:00:01.5]} 32... Rd7 {[%clk 0:00:28.3]} 33. a3 {[%clk 0:00:01.2]}
33... Rb8 {[%clk 0:00:25.7]} 34. h5 {[%clk 0:00:01.5]} 34... g5 {[%clk
0:00:24.8]} 35. Rg6+ {[%clk 0:00:01.3]} 35... Kh7 {[%clk 0:00:24.7]} 36. Rh2
{[%clk 0:00:01.4]} 36... Rd1+ {[%clk 0:00:24.4]} 37. Ka2 {[%clk 0:00:01.3]}
37... Rb6 {[%clk 0:00:20.9]} 0-1

[Event "*** Titled Tuesday Blitz"]
[Site "Chess.com"]
[Date "2020.05.05"]
[Round "7"]
[White "pedromartinez91"]
[Black "Jaka_Brilej"]
[Result "1-0"]
[WhiteElo "2528"]
[BlackElo "2371"]
[TimeControl "180+1"]
[EndTime "11:18:51 PDT"]
[Termination "pedromartinez91 won by resignation"]

1. e4 {[%clk 0:03:00.9]} 1... c5 {[%clk 0:02:59]} 2. Nf3 {[%clk 0:03:00.8]} 2...
Nc6 {[%clk 0:02:58.5]} 3. d4 {[%clk 0:03:00.7]} 3... cxd4 {[%clk 0:02:59]} 4.
Nxd4 {[%clk 0:03:01.6]} 4... Nf6 {[%clk 0:02:59.3]} 5. Nc3 {[%clk 0:03:01.4]}
5... e5 {[%clk 0:02:59.6]} 6. Ndb5 {[%clk 0:03:01.3]} 6... d6 {[%clk 0:02:59.9]}
7. Bg5 {[%clk 0:03:00.9]} 7... a6 {[%clk 0:03:00]} 8. Na3 {[%clk 0:03:00.9]}
8... b5 {[%clk 0:03:00.2]} 9. Nd5 {[%clk 0:03:00.9]} 9... Be7 {[%clk 0:03:00.4]}
10. Nxe7 {[%clk 0:03:01.3]} 10... Nxe7 {[%clk 0:02:59.8]} 11. Bxf6 {[%clk
0:03:00.9]} 11... gxf6 {[%clk 0:02:59.5]} 12. c4 {[%clk 0:03:01.6]} 12... O-O
{[%clk 0:02:49.3]} 13. cxb5 {[%clk 0:03:01.3]} 13... axb5 {[%clk 0:02:49.1]} 14.
Nxb5 {[%clk 0:02:58.5]} 14... d5 {[%clk 0:02:46.2]} 15. exd5 {[%clk 0:02:56.1]}
15... Nxd5 {[%clk 0:02:35.8]} 16. Nc3 {[%clk 0:02:52.3]} 16... Be6 {[%clk
0:01:59.6]} 17. Be2 {[%clk 0:02:40.1]} 17... Nxc3 {[%clk 0:01:58.4]} 18. bxc3
{[%clk 0:02:21.1]} 18... Qxd1+ {[%clk 0:01:53.3]} 19. Bxd1 {[%clk 0:02:22]}
19... Rxa2 {[%clk 0:01:46.4]} 20. Rxa2 {[%clk 0:02:19.4]} 20... Bxa2 {[%clk
0:01:46.8]} 21. Bg4 {[%clk 0:02:12.8]} 21... Bc4 {[%clk 0:01:41.3]} 22. Kd2
{[%clk 0:01:55.1]} 22... Ra8 {[%clk 0:01:38]} 23. Rc1 {[%clk 0:01:47.2]} 23...
Rd8+ {[%clk 0:01:25.8]} 24. Kc2 {[%clk 0:01:44]} 24... Bd3+ {[%clk 0:01:22.4]}
25. Kb2 {[%clk 0:01:40.6]} 25... f5 {[%clk 0:01:22.3]} 26. Bh5 {[%clk
0:01:35.9]} 26... Rb8+ {[%clk 0:01:19]} 27. Ka3 {[%clk 0:01:36]} 27... Bc4
{[%clk 0:01:17.5]} 28. Bd1 {[%clk 0:01:36.5]} 28... Kg7 {[%clk 0:01:14.5]} 29.
Bc2 {[%clk 0:01:36.8]} 29... Kf6 {[%clk 0:01:13.2]} 30. Rb1 {[%clk 0:01:36.8]}
30... Rd8 {[%clk 0:01:09.3]} 31. Kb4 {[%clk 0:01:36]} 31... Be6 {[%clk
0:01:07.8]} 32. Rd1 {[%clk 0:01:34.4]} 32... Rb8+ {[%clk 0:01:06.2]} 33. Ka3
{[%clk 0:01:30.1]} 33... Ra8+ {[%clk 0:01:05.9]} 34. Kb2 {[%clk 0:01:29.8]}
34... Rb8+ {[%clk 0:01:06.1]} 35. Kc1 {[%clk 0:01:30.2]} 35... Rc8 {[%clk
0:01:06]} 36. Kd2 {[%clk 0:01:30.2]} 36... Rd8+ {[%clk 0:01:04.3]} 37. Ke1
{[%clk 0:01:30.3]} 37... Rc8 {[%clk 0:01:04.5]} 38. Rd3 {[%clk 0:01:30.3]} 38...
e4 {[%clk 0:01:03.3]} 39. Re3 {[%clk 0:01:30.3]} 39... Bd5 {[%clk 0:00:52.7]}
40. g3 {[%clk 0:01:25.5]} 40... Ke5 {[%clk 0:00:49.5]} 41. Kd2 {[%clk
0:01:20.5]} 41... Ra8 {[%clk 0:00:43.7]} 42. Kc1 {[%clk 0:01:12.4]} 42... Ra1+
{[%clk 0:00:38.9]} 43. Kd2 {[%clk 0:01:10.8]} 43... Ra2 {[%clk 0:00:38.8]} 44.
Kc1 {[%clk 0:01:09.4]} 44... Ra1+ {[%clk 0:00:38.9]} 45. Kb2 {[%clk 0:01:09.2]}
45... Rf1 {[%clk 0:00:37.3]} 46. Re2 {[%clk 0:01:09.3]} 46... f4 {[%clk
0:00:35.8]} 47. Rd2 {[%clk 0:00:59.8]} 47... Bc4 {[%clk 0:00:26]} 48. Rd4 {[%clk
0:00:56.1]} 48... Bd5 {[%clk 0:00:21.6]} 49. gxf4+ {[%clk 0:00:54.2]} 49... Kxf4
{[%clk 0:00:21.8]} 50. Rxd5 {[%clk 0:00:49.4]} 50... Rxf2 {[%clk 0:00:22.3]} 51.
c4 {[%clk 0:00:42.9]} 51... e3 {[%clk 0:00:21]} 52. Rf5+ {[%clk 0:00:42.8]}
52... Kg4 {[%clk 0:00:19.5]} 53. Rxf2 {[%clk 0:00:42.8]} 53... exf2 {[%clk
0:00:18.6]} 54. Bd3 {[%clk 0:00:43.4]} 54... Kf3 {[%clk 0:00:19.1]} 55. c5
{[%clk 0:00:43.3]} 55... Ke3 {[%clk 0:00:18.9]} 56. Kc3 {[%clk 0:00:43.5]} 1-0

[Event "*** Titled Tuesday Blitz"]
[Site "Chess.com"]
[Date "2020.05.05"]
[Round "7"]
[White "Igor_Lysyj"]
[Black "evgenyermolaev"]
[Result "1-0"]
[WhiteElo "2781"]
[BlackElo "2608"]
[TimeControl "180+1"]
[EndTime "11:18:52 PDT"]
[Termination "Igor_Lysyj won on time"]

1. d4 {[%clk 0:02:59.7]} 1... Nf6 {[%clk 0:02:59.8]} 2. c4 {[%clk 0:02:59]} 2...
c5 {[%clk 0:03:00]} 3. d5 {[%clk 0:02:58.5]} 3... g6 {[%clk 0:03:00.3]} 4. Nc3
{[%clk 0:02:57.9]} 4... Bg7 {[%clk 0:03:00.7]} 5. e4 {[%clk 0:02:58.2]} 5... d6
{[%clk 0:03:01]} 6. Nf3 {[%clk 0:02:57.6]} 6... O-O {[%clk 0:03:00.7]} 7. Be2
{[%clk 0:02:56.9]} 7... e6 {[%clk 0:03:00.6]} 8. O-O {[%clk 0:02:56.7]} 8... Re8
{[%clk 0:03:00.9]} 9. h3 {[%clk 0:02:55.6]} 9... Na6 {[%clk 0:03:00.8]} 10. Bd3
{[%clk 0:02:54.6]} 10... Nc7 {[%clk 0:02:50.5]} 11. Bg5 {[%clk 0:02:52.4]} 11...
exd5 {[%clk 0:02:49.7]} 12. exd5 {[%clk 0:02:51.9]} 12... h6 {[%clk 0:02:48.9]}
13. Bh4 {[%clk 0:02:51.6]} 13... Rb8 {[%clk 0:02:31.7]} 14. Qd2 {[%clk
0:02:48.6]} 14... Qd7 {[%clk 0:01:53.9]} 15. Bxf6 {[%clk 0:02:22.7]} 15... Bxf6
{[%clk 0:01:53.6]} 16. Qxh6 {[%clk 0:02:22.6]} 16... Bg7 {[%clk 0:01:54]} 17.
Qf4 {[%clk 0:02:17.5]} 17... b5 {[%clk 0:01:39.3]} 18. cxb5 {[%clk 0:02:12.1]}
18... Bb7 {[%clk 0:01:17.9]} 19. Bc4 {[%clk 0:02:11.7]} 19... Bxc3 {[%clk
0:01:13.5]} 20. bxc3 {[%clk 0:02:11.1]} 20... Nxd5 {[%clk 0:01:13.9]} 21. Qd2
{[%clk 0:01:58.3]} 21... Nb6 {[%clk 0:01:07.7]} 22. Be2 {[%clk 0:01:55.8]} 22...
Rbd8 {[%clk 0:00:47.4]} 23. a4 {[%clk 0:01:52.9]} 23... Qf5 {[%clk 0:00:35.8]}
24. Bd3 {[%clk 0:01:20.8]} 24... Qf6 {[%clk 0:00:32.1]} 25. Ng5 {[%clk
0:01:15.9]} 25... Nd5 {[%clk 0:00:17.1]} 26. Bc4 {[%clk 0:00:52.7]} 26... Nf4
{[%clk 0:00:10.6]} 27. Nxf7 {[%clk 0:00:52]} 27... d5 {[%clk 0:00:05.4]} 28.
Nxd8 {[%clk 0:00:48.9]} 28... Rxd8 {[%clk 0:00:05.8]} 29. Rfd1 {[%clk
0:00:31.6]} 29... Qg5 {[%clk 0:00:05.6]} 30. Bf1 {[%clk 0:00:31.4]} 30... Nxh3+
{[%clk 0:00:05.2]} 31. Kh2 {[%clk 0:00:31.4]} 31... Nf4 {[%clk 0:00:05.4]} 32.
g3 {[%clk 0:00:29.3]} 32... Qh5+ {[%clk 0:00:05.6]} 33. Kg1 {[%clk 0:00:29.2]}
33... d4 {[%clk 0:00:06.1]} 34. f3 {[%clk 0:00:29.1]} 34... Bxf3 {[%clk
0:00:04.9]} 35. Qxf4 {[%clk 0:00:27.3]} 35... Qh1+ {[%clk 0:00:03.3]} 36. Kf2
{[%clk 0:00:27.4]} 36... Bxd1 {[%clk 0:00:02.9]} 37. Rxd1 {[%clk 0:00:25]} 37...
Qb7 {[%clk 0:00:01.2]} 38. Bc4+ {[%clk 0:00:24.4]} 38... Kg7 {[%clk 0:00:01.6]}
39. Qe5+ {[%clk 0:00:24.5]} 1-0